[Event "Titled Tuesday Blitz March 21 Early 2023"]
[White "Yeletsky, Ivan"]
[Black "Shapiro, Viktor"]
[WhiteFideId "24180327"]
[BlackFideId "4175700"]
[WhiteElo "2414"]
[BlackElo "2152"]
[Result "0-1"]
[Round "01"]
[TimeControl "180+2"]
[Date "2023.03.21"]
[WhiteClock "0:00:02"]
[BlackClock "0:00:43"]

1. e4 {[%clk 0:01:21]}  Nf6 {[%clk 0:02:57]} 2. e5 {[%clk 0:00:40]}  Nd5 {[%clk 0:02:58]} 3. d4 {[%clk 0:00:41]}  d6 {[%clk 0:02:57]} 4. Nf3 {[%clk 0:00:42]}  Bg4 {[%clk 0:02:56]} 5. Be2 {[%clk 0:00:42]}  e6 {[%clk 0:02:56]} 6. c4 {[%clk 0:00:41]}  Nb6 {[%clk 0:02:56]} 7. h3 {[%clk 0:00:41]}  Bh5 {[%clk 0:02:55]} 8. exd6 {[%clk 0:00:39]}  cxd6 {[%clk 0:02:55]} 9. Nc3 {[%clk 0:00:39]}  Be7 {[%clk 0:02:55]} 10. d5 {[%clk 0:00:39]}  e5 {[%clk 0:02:55]} 11. c5 {[%clk 0:00:38]}  dxc5 {[%clk 0:02:47]} 12. Nxe5 {[%clk 0:00:38]}  Bxe2 {[%clk 0:02:46]} 13. Qxe2 {[%clk 0:00:39]}  O-O {[%clk 0:02:46]} 14. O-O {[%clk 0:00:38]}  N8d7 {[%clk 0:02:45]} 15. Nf3 {[%clk 0:00:35]}  Re8 {[%clk 0:02:44]} 16. Rd1 {[%clk 0:00:35]}  Bd6 {[%clk 0:02:42]} 17. Qc2 {[%clk 0:00:34]}  Nf6 {[%clk 0:02:37]} 18. Bg5 {[%clk 0:00:33]}  h6 {[%clk 0:02:35]} 19. Bh4 {[%clk 0:00:30]}  g5 {[%clk 0:02:28]} 20. Bg3 {[%clk 0:00:29]}  Bxg3 {[%clk 0:02:27]} 21. fxg3 {[%clk 0:00:30]}  Qd6 {[%clk 0:02:24]} 22. g4 {[%clk 0:00:30]}  a6 {[%clk 0:02:22]} 23. b3 {[%clk 0:00:22]}  Re3 {[%clk 0:02:18]} 24. Rd3 {[%clk 0:00:20]}  Rae8 {[%clk 0:02:17]} 25. Rad1 {[%clk 0:00:20]}  Kg7 {[%clk 0:02:04]} 26. a4 {[%clk 0:00:17]}  c4 {[%clk 0:02:02]} 27. Rxe3 {[%clk 0:00:15]}  Rxe3 {[%clk 0:02:02]} 28. bxc4 {[%clk 0:00:16]}  Nxc4 {[%clk 0:02:01]} 29. Rd3 {[%clk 0:00:12]}  Qc5 {[%clk 0:01:53]} 30. Qf2 {[%clk 0:00:12]}  Qb6 {[%clk 0:01:38]} 31. Rxe3 {[%clk 0:00:12]}  Qxe3 {[%clk 0:01:34]} 32. Qxe3 {[%clk 0:00:04]}  Nxe3 {[%clk 0:01:31]} 33. d6 {[%clk 0:00:03]}  Nc4 {[%clk 0:01:30]} 34. Ne4 {[%clk 0:00:03]}  Nb6 {[%clk 0:01:11]} 35. Nxf6 {[%clk 0:00:01]}  Kxf6 {[%clk 0:01:11]} 36. a5 {[%clk 0:00:02]}  Nd7 {[%clk 0:01:10]} 37. Nd4 {[%clk 0:00:02]}  Ke5 {[%clk 0:01:08]} 38. Nf5 {[%clk 0:00:02]}  h5 {[%clk 0:01:07]} 39. Kf2 {[%clk 0:00:02]}  h4 {[%clk 0:01:06]} 40. Ne3 {[%clk 0:00:02]}  Kxd6 {[%clk 0:01:05]} 41. g3 {[%clk 0:00:03]}  hxg3+ {[%clk 0:01:04]} 42. Kxg3 {[%clk 0:00:04]}  Ne5 {[%clk 0:00:58]} 43. Nf5+ {[%clk 0:00:04]}  Kc5 {[%clk 0:00:54]} 44. h4 {[%clk 0:00:05]}  gxh4+ {[%clk 0:00:55]} 45. Kxh4 {[%clk 0:00:06]}  Kb4 {[%clk 0:00:55]} 46. Nd6 {[%clk 0:00:05]}  Kxa5 {[%clk 0:00:54]} 47. Nxb7+ {[%clk 0:00:06]}  Kb4 {[%clk 0:00:54]} 48. Nd6 {[%clk 0:00:07]}  a5 {[%clk 0:00:53]} 49. Nf5 {[%clk 0:00:06]}  a4 {[%clk 0:00:53]} 50. Nd4 {[%clk 0:00:06]}  Kc4 {[%clk 0:00:48]} 51. Nc2 {[%clk 0:00:06]}  Kc3 {[%clk 0:00:48]} 52. Na3 {[%clk 0:00:06]}  Nc4 {[%clk 0:00:48]} 53. Nb5+ {[%clk 0:00:06]}  Kb4 {[%clk 0:00:48]} 54. Nd4 {[%clk 0:00:06]}  Ne3 {[%clk 0:00:48]} 55. Ne2 {[%clk 0:00:03]}  a3 {[%clk 0:00:47]} 56. Nc1 {[%clk 0:00:03]}  Kc3 {[%clk 0:00:47]} 57. g5 {[%clk 0:00:02]}  Kc2 {[%clk 0:00:43]} 58. Na2 {[%clk 0:00:02]}  Nd5 {[%clk 0:00:43]} 0-1


[Site "https://www.chess.com"]

[Event "Titled Tuesday Blitz March 21 Early 2023"]
[White "Movahed, Sina"]
[Black "Staudenhocker43"]
[WhiteFideId "42520835"]
[WhiteElo "2225"]
[BlackElo "2482"]
[Result "1-0"]
[Round "01"]
[TimeControl "180+2"]
[Date "2023.03.21"]
[WhiteClock "0:01:59"]
[BlackClock "0:01:30"]

1. e4 {[%clk 0:02:59]}  e5 {[%clk 0:02:59]} 2. Nf3 {[%clk 0:02:59]}  Nf6 {[%clk 0:02:59]} 3. Nxe5 {[%clk 0:02:58]}  d6 {[%clk 0:02:59]} 4. Nf3 {[%clk 0:02:58]}  Nxe4 {[%clk 0:03:00]} 5. d4 {[%clk 0:02:59]}  d5 {[%clk 0:03:00]} 6. Bd3 {[%clk 0:03:00]}  Bd6 {[%clk 0:02:59]} 7. O-O {[%clk 0:03:00]}  O-O {[%clk 0:02:59]} 8. c4 {[%clk 0:03:01]}  c6 {[%clk 0:03:00]} 9. Nc3 {[%clk 0:03:02]}  Nxc3 {[%clk 0:03:00]} 10. bxc3 {[%clk 0:03:03]}  dxc4 {[%clk 0:03:01]} 11. Bxc4 {[%clk 0:03:03]}  Bf5 {[%clk 0:03:01]} 12. Bg5 {[%clk 0:03:04]}  Qa5 {[%clk 0:03:00]} 13. d5 {[%clk 0:03:03]}  Qc5 {[%clk 0:02:59]} 14. Bb3 {[%clk 0:02:59]}  cxd5 {[%clk 0:02:56]} 15. Be3 {[%clk 0:02:55]}  Qc7 {[%clk 0:02:55]} 16. Nd4 {[%clk 0:02:40]}  Bxh2+ {[%clk 0:02:41]} 17. Kh1 {[%clk 0:02:37]}  Bg6 {[%clk 0:02:20]} 18. f4 {[%clk 0:02:34]}  Bg3 {[%clk 0:02:17]} 19. Qg4 {[%clk 0:02:30]}  Qxc3 {[%clk 0:02:14]} 20. Qxg3 {[%clk 0:02:30]}  Re8 {[%clk 0:02:14]} 21. Rae1 {[%clk 0:02:26]}  Nc6 {[%clk 0:02:01]} 22. Nxc6 {[%clk 0:02:25]}  bxc6 {[%clk 0:02:02]} 23. f5 {[%clk 0:02:25]}  Bh5 {[%clk 0:02:00]} 24. Bf4 {[%clk 0:02:19]}  Qxg3 {[%clk 0:01:55]} 25. Bxg3 {[%clk 0:02:19]}  f6 {[%clk 0:01:53]} 26. Rc1 {[%clk 0:02:11]}  Be2 {[%clk 0:01:46]} 27. Rf4 {[%clk 0:02:08]}  Rac8 {[%clk 0:01:42]} 28. Rxc6 {[%clk 0:02:06]}  Rxc6 {[%clk 0:01:40]} 29. Bxd5+ {[%clk 0:02:06]}  Kf8 {[%clk 0:01:38]} 30. Bxc6 {[%clk 0:02:06]}  Rc8 {[%clk 0:01:38]} 31. Ba4 {[%clk 0:02:03]}  Bc4 {[%clk 0:01:34]} 32. Rxc4 {[%clk 0:01:58]}  Rxc4 {[%clk 0:01:30]} 33. Bd6+ {[%clk 0:01:59]} 1-0


[Site "https://www.chess.com"]

[Event "Titled Tuesday Blitz March 21 Early 2023"]
[White "Vogel, Roven"]
[Black "Khamdamova, Afruza"]
[WhiteFideId "12908088"]
[BlackFideId "14210444"]
[WhiteElo "2518"]
[BlackElo "2210"]
[Result "1-0"]
[Round "01"]
[TimeControl "180+2"]
[Date "2023.03.21"]
[WhiteClock "0:00:32"]
[BlackClock "0:00:01"]

1. e4 {[%clk 0:02:58]}  e5 {[%clk 0:03:00]} 2. Nf3 {[%clk 0:02:58]}  Nf6 {[%clk 0:02:58]} 3. Nc3 {[%clk 0:02:57]}  Nc6 {[%clk 0:02:57]} 4. Bb5 {[%clk 0:02:57]}  Bc5 {[%clk 0:02:54]} 5. d3 {[%clk 0:02:50]}  d6 {[%clk 0:02:49]} 6. Bxc6+ {[%clk 0:02:39]}  bxc6 {[%clk 0:02:49]} 7. Be3 {[%clk 0:02:38]}  Bxe3 {[%clk 0:02:31]} 8. fxe3 {[%clk 0:02:39]}  O-O {[%clk 0:02:31]} 9. O-O {[%clk 0:02:39]}  Rb8 {[%clk 0:02:31]} 10. b3 {[%clk 0:02:38]}  Re8 {[%clk 0:02:30]} 11. Qe1 {[%clk 0:02:37]}  d5 {[%clk 0:02:29]} 12. Nh4 {[%clk 0:02:28]}  Ng4 {[%clk 0:01:52]} 13. Nf5 {[%clk 0:02:22]}  Qg5 {[%clk 0:01:42]} 14. Rf3 {[%clk 0:02:04]}  g6 {[%clk 0:01:00]} 15. Ng3 {[%clk 0:02:02]}  d4 {[%clk 0:00:59]} 16. Nd1 {[%clk 0:01:57]}  Be6 {[%clk 0:00:57]} 17. h3 {[%clk 0:01:52]}  Nxe3 {[%clk 0:00:52]} 18. Nxe3 {[%clk 0:01:51]}  dxe3 {[%clk 0:00:52]} 19. Qxe3 {[%clk 0:01:52]}  Qxe3+ {[%clk 0:00:50]} 20. Rxe3 {[%clk 0:01:53]}  Red8 {[%clk 0:00:48]} 21. Rf1 {[%clk 0:01:52]}  a5 {[%clk 0:00:47]} 22. a4 {[%clk 0:01:47]}  h5 {[%clk 0:00:44]} 23. Rf2 {[%clk 0:01:41]}  Kg7 {[%clk 0:00:43]} 24. Ref3 {[%clk 0:01:40]}  Rd7 {[%clk 0:00:42]} 25. Nf1 {[%clk 0:01:40]}  c5 {[%clk 0:00:37]} 26. Ne3 {[%clk 0:01:40]}  Rh8 {[%clk 0:00:30]} 27. Kf1 {[%clk 0:01:39]}  h4 {[%clk 0:00:29]} 28. Ke1 {[%clk 0:01:39]}  Rb8 {[%clk 0:00:25]} 29. Kd2 {[%clk 0:01:39]}  c4 {[%clk 0:00:24]} 30. bxc4 {[%clk 0:01:24]}  Rb4 {[%clk 0:00:24]} 31. g3 {[%clk 0:01:22]}  hxg3 {[%clk 0:00:23]} 32. Rxg3 {[%clk 0:01:23]}  Rxa4 {[%clk 0:00:23]} 33. Kc3 {[%clk 0:01:20]}  Ra1 {[%clk 0:00:22]} 34. Rh2 {[%clk 0:01:14]}  c6 {[%clk 0:00:17]} 35. h4 {[%clk 0:01:11]}  Kf8 {[%clk 0:00:15]} 36. h5 {[%clk 0:01:11]}  gxh5 {[%clk 0:00:15]} 37. Rxh5 {[%clk 0:01:11]}  Ra7 {[%clk 0:00:16]} 38. Rxe5 {[%clk 0:01:10]}  a4 {[%clk 0:00:16]} 39. Kb2 {[%clk 0:01:07]}  Re1 {[%clk 0:00:15]} 40. Nf5 {[%clk 0:00:49]}  Bxf5 {[%clk 0:00:15]} 41. Rxf5 {[%clk 0:00:48]}  a3+ {[%clk 0:00:15]} 42. Ka2 {[%clk 0:00:46]}  Re2 {[%clk 0:00:15]} 43. Rg1 {[%clk 0:00:39]}  Rxc2+ {[%clk 0:00:15]} 44. Kb3 {[%clk 0:00:39]}  Rb2+ {[%clk 0:00:15]} 45. Kc3 {[%clk 0:00:40]}  Rb8 {[%clk 0:00:12]} 46. Ra1 {[%clk 0:00:38]}  Ke7 {[%clk 0:00:11]} 47. Rf2 {[%clk 0:00:37]}  Rh8 {[%clk 0:00:07]} 48. Rfa2 {[%clk 0:00:36]}  Rh3 {[%clk 0:00:07]} 49. Rxa3 {[%clk 0:00:36]}  Rd7 {[%clk 0:00:08]} 50. Rd1 {[%clk 0:00:36]}  c5 {[%clk 0:00:07]} 51. Ra6 {[%clk 0:00:35]}  Rg3 {[%clk 0:00:05]} 52. Rc6 {[%clk 0:00:35]}  Rg5 {[%clk 0:00:05]} 53. Rd2 {[%clk 0:00:34]}  Rd6 {[%clk 0:00:05]} 54. Rxd6 {[%clk 0:00:33]}  Kxd6 {[%clk 0:00:06]} 55. Rf2 {[%clk 0:00:33]}  Ke6 {[%clk 0:00:05]} 56. Ra2 {[%clk 0:00:33]}  Rg3 {[%clk 0:00:04]} 57. Ra6+ {[%clk 0:00:31]}  Kd7 {[%clk 0:00:04]} 58. Ra7+ {[%clk 0:00:31]}  Ke6 {[%clk 0:00:04]} 59. Rc7 {[%clk 0:00:30]}  Rg5 {[%clk 0:00:04]} 60. Kd2 {[%clk 0:00:30]}  f6 {[%clk 0:00:04]} 61. Ke3 {[%clk 0:00:31]}  Kd6 {[%clk 0:00:04]} 62. Rf7 {[%clk 0:00:30]}  Ke6 {[%clk 0:00:04]} 63. Rf8 {[%clk 0:00:31]}  Rg3+ {[%clk 0:00:04]} 64. Ke2 {[%clk 0:00:31]}  Rg2+ {[%clk 0:00:04]} 65. Kf3 {[%clk 0:00:31]}  Rd2 {[%clk 0:00:05]} 66. Rd8 {[%clk 0:00:30]}  Rh2 {[%clk 0:00:03]} 67. Rd5 {[%clk 0:00:30]}  Rh3+ {[%clk 0:00:03]} 68. Ke2 {[%clk 0:00:31]}  Rh2+ {[%clk 0:00:03]} 69. Ke3 {[%clk 0:00:31]}  Rh3+ {[%clk 0:00:04]} 70. Kd2 {[%clk 0:00:32]}  Rh2+ {[%clk 0:00:03]} 71. Kc3 {[%clk 0:00:32]}  Ra2 {[%clk 0:00:01]} 72. Rxc5 {[%clk 0:00:32]}  Ra3+ {[%clk 0:00:01]} 73. Kd4 {[%clk 0:00:33]}  Ra7 {[%clk 0:00:01]} 74. Rf5 {[%clk 0:00:32]} 1-0


[Site "https://www.chess.com"]

[Event "Titled Tuesday Blitz March 21 Early 2023"]
[White "Donskov, Anatoly"]
[Black "Gharibyan, Mamikon"]
[WhiteFideId "24143413"]
[BlackFideId "13308300"]
[WhiteElo "2247"]
[BlackElo "2445"]
[Result "0-1"]
[Round "01"]
[TimeControl "180+2"]
[Date "2023.03.21"]
[WhiteClock "0:00:01"]
[BlackClock "0:00:13"]

1. e4 {[%clk 0:03:00]}  g6 {[%clk 0:02:59]} 2. d4 {[%clk 0:03:00]}  d6 {[%clk 0:02:58]} 3. Nc3 {[%clk 0:02:59]}  a6 {[%clk 0:02:56]} 4. a4 {[%clk 0:02:59]}  Bg7 {[%clk 0:02:56]} 5. Nf3 {[%clk 0:02:59]}  Nc6 {[%clk 0:02:54]} 6. h3 {[%clk 0:02:58]}  Nf6 {[%clk 0:02:53]} 7. Be3 {[%clk 0:02:55]}  O-O {[%clk 0:02:36]} 8. Bd3 {[%clk 0:02:55]}  Nb4 {[%clk 0:02:35]} 9. Be2 {[%clk 0:02:49]}  a5 {[%clk 0:02:35]} 10. O-O {[%clk 0:02:48]}  c6 {[%clk 0:02:33]} 11. Qd2 {[%clk 0:02:35]}  e5 {[%clk 0:02:20]} 12. Rad1 {[%clk 0:02:25]}  exd4 {[%clk 0:02:18]} 13. Nxd4 {[%clk 0:02:25]}  Re8 {[%clk 0:02:14]} 14. Bf3 {[%clk 0:02:21]}  d5 {[%clk 0:02:02]} 15. exd5 {[%clk 0:02:08]}  Nfxd5 {[%clk 0:01:59]} 16. Nxd5 {[%clk 0:02:07]}  Nxd5 {[%clk 0:02:00]} 17. Bh6 {[%clk 0:01:49]}  Nb6 {[%clk 0:01:18]} 18. Bxg7 {[%clk 0:01:35]}  Kxg7 {[%clk 0:01:19]} 19. Qc3 {[%clk 0:01:29]}  Qf6 {[%clk 0:01:16]} 20. b3 {[%clk 0:01:12]}  Bd7 {[%clk 0:01:02]} 21. Qc5 {[%clk 0:01:08]}  Nc8 {[%clk 0:01:01]} 22. Rfe1 {[%clk 0:00:58]}  Ne7 {[%clk 0:00:51]} 23. Qb6 {[%clk 0:00:49]}  Nf5 {[%clk 0:00:41]} 24. Nxf5+ {[%clk 0:00:43]}  Bxf5 {[%clk 0:00:42]} 25. Qxb7 {[%clk 0:00:38]}  Bxc2 {[%clk 0:00:33]} 26. Rc1 {[%clk 0:00:27]}  Qb2 {[%clk 0:00:28]} 27. Qxc6 {[%clk 0:00:19]}  Rac8 {[%clk 0:00:18]} 28. Qb5 {[%clk 0:00:14]}  Bd3 {[%clk 0:00:16]} 29. Qg5 {[%clk 0:00:06]}  h6 {[%clk 0:00:14]} 30. Qf4 {[%clk 0:00:05]}  g5 {[%clk 0:00:14]} 31. Rxe8 {[%clk 0:00:04]}  Rxc1+ {[%clk 0:00:14]} 32. Kh2 {[%clk 0:00:01]}  gxf4 {[%clk 0:00:13]} 0-1


[Site "https://www.chess.com"]

[Event "Titled Tuesday Blitz March 21 Early 2023"]
[White "Aarav Dengla"]
[Black "Zhigalko, Sergei"]
[WhiteFideId "45059756"]
[BlackFideId "13502956"]
[WhiteElo "2285"]
[BlackElo "2626"]
[Result "0-1"]
[Round "01"]
[TimeControl "180+2"]
[Date "2023.03.21"]
[WhiteClock "0:00:22"]
[BlackClock "0:00:43"]

1. e4 {[%clk 0:02:59]}  c5 {[%clk 0:02:58]} 2. Nf3 {[%clk 0:02:59]}  Nc6 {[%clk 0:02:58]} 3. Bb5 {[%clk 0:02:55]}  Nf6 {[%clk 0:02:57]} 4. Nc3 {[%clk 0:02:53]}  Qc7 {[%clk 0:02:55]} 5. d3 {[%clk 0:02:51]}  Nd4 {[%clk 0:02:54]} 6. Bc4 {[%clk 0:02:47]}  e6 {[%clk 0:02:54]} 7. Nxd4 {[%clk 0:02:43]}  cxd4 {[%clk 0:02:54]} 8. Nb5 {[%clk 0:02:43]}  Qb6 {[%clk 0:02:49]} 9. Bf4 {[%clk 0:02:31]}  d6 {[%clk 0:02:49]} 10. e5 {[%clk 0:02:13]}  Nd5 {[%clk 0:02:49]} 11. exd6 {[%clk 0:01:56]}  Nxf4 {[%clk 0:02:47]} 12. Nc7+ {[%clk 0:01:56]}  Kd8 {[%clk 0:02:33]} 13. Nxa8 {[%clk 0:01:57]}  Qxd6 {[%clk 0:02:22]} 14. Qf3 {[%clk 0:01:47]}  Qe5+ {[%clk 0:02:10]} 15. Kf1 {[%clk 0:01:42]}  Bd6 {[%clk 0:02:09]} 16. g3 {[%clk 0:01:37]}  Qh5 {[%clk 0:02:08]} 17. Qe4 {[%clk 0:01:19]}  Nd5 {[%clk 0:00:56]} 18. Qxd4 {[%clk 0:01:06]}  b6 {[%clk 0:00:56]} 19. Nxb6 {[%clk 0:00:51]}  axb6 {[%clk 0:00:53]} 20. Bb3 {[%clk 0:00:49]}  Bb7 {[%clk 0:00:45]} 21. Bxd5 {[%clk 0:00:21]}  Qxd5 {[%clk 0:00:44]} 22. Rg1 {[%clk 0:00:22]}  Qxd4 {[%clk 0:00:43]} 0-1


[Site "https://www.chess.com"]

[Event "Titled Tuesday Blitz March 21 Early 2023"]
[White "Timofeev, Artyom"]
[Black "Petukhov, Dmitry"]
[WhiteFideId "4140419"]
[BlackFideId "4142748"]
[WhiteElo "2586"]
[BlackElo "2311"]
[Result "1/2-1/2"]
[Round "01"]
[TimeControl "180+2"]
[Date "2023.03.21"]
[WhiteClock "0:00:05"]
[BlackClock "0:00:08"]

1. e4 {[%clk 0:02:54]}  c5 {[%clk 0:02:59]} 2. Nf3 {[%clk 0:02:53]}  d6 {[%clk 0:03:00]} 3. d4 {[%clk 0:02:53]}  cxd4 {[%clk 0:03:00]} 4. Nxd4 {[%clk 0:02:53]}  Nf6 {[%clk 0:03:01]} 5. Nc3 {[%clk 0:02:52]}  Nc6 {[%clk 0:03:02]} 6. Bg5 {[%clk 0:02:50]}  Bd7 {[%clk 0:03:02]} 7. Bxf6 {[%clk 0:02:47]}  gxf6 {[%clk 0:03:02]} 8. Be2 {[%clk 0:02:44]}  Qa5 {[%clk 0:02:57]} 9. Nb3 {[%clk 0:02:40]}  Qd8 {[%clk 0:02:44]} 10. Qd2 {[%clk 0:02:35]}  h5 {[%clk 0:02:41]} 11. O-O-O {[%clk 0:02:33]}  Bh6 {[%clk 0:02:39]} 12. f4 {[%clk 0:02:33]}  a5 {[%clk 0:02:40]} 13. a4 {[%clk 0:02:29]}  Nb4 {[%clk 0:02:39]} 14. Kb1 {[%clk 0:02:27]}  f5 {[%clk 0:02:24]} 15. exf5 {[%clk 0:02:11]}  Bxf5 {[%clk 0:02:23]} 16. Nd4 {[%clk 0:02:11]}  Qd7 {[%clk 0:02:10]} 17. Nxf5 {[%clk 0:02:09]}  Qxf5 {[%clk 0:02:11]} 18. g3 {[%clk 0:02:08]}  Rc8 {[%clk 0:02:10]} 19. Rhe1 {[%clk 0:02:05]}  Bg7 {[%clk 0:02:05]} 20. Bb5+ {[%clk 0:01:51]}  Kf8 {[%clk 0:02:02]} 21. Re3 {[%clk 0:01:49]}  Rh6 {[%clk 0:01:55]} 22. Bd3 {[%clk 0:01:41]}  Nxd3 {[%clk 0:01:47]} 23. Rxd3 {[%clk 0:01:40]}  Re6 {[%clk 0:01:30]} 24. Nd5 {[%clk 0:01:27]}  Re4 {[%clk 0:01:23]} 25. c3 {[%clk 0:01:26]}  Rc5 {[%clk 0:01:08]} 26. Qc2 {[%clk 0:01:23]}  b5 {[%clk 0:00:58]} 27. axb5 {[%clk 0:01:17]}  Rxb5 {[%clk 0:00:54]} 28. R3d2 {[%clk 0:00:58]}  e6 {[%clk 0:00:37]} 29. Nc7 {[%clk 0:00:46]}  Rb7 {[%clk 0:00:35]} 30. Na6 {[%clk 0:00:41]}  Kg8 {[%clk 0:00:27]} 31. Rxd6 {[%clk 0:00:39]}  Qb5 {[%clk 0:00:27]} 32. Rd8+ {[%clk 0:00:30]}  Bf8 {[%clk 0:00:27]} 33. Nc5 {[%clk 0:00:24]}  Re2 {[%clk 0:00:23]} 34. R8d2 {[%clk 0:00:17]}  Rxd2 {[%clk 0:00:22]} 35. Rxd2 {[%clk 0:00:17]}  Qxc5 {[%clk 0:00:22]} 36. Qe4 {[%clk 0:00:17]}  Qf5 {[%clk 0:00:19]} 37. Qxf5 {[%clk 0:00:17]}  exf5 {[%clk 0:00:20]} 38. Rd5 {[%clk 0:00:16]}  a4 {[%clk 0:00:20]} 39. Ka2 {[%clk 0:00:15]}  a3 {[%clk 0:00:19]} 40. bxa3 {[%clk 0:00:15]}  Ra7 {[%clk 0:00:20]} 41. Rxf5 {[%clk 0:00:15]}  Rxa3+ {[%clk 0:00:20]} 42. Kb2 {[%clk 0:00:16]}  Ra7 {[%clk 0:00:19]} 43. Rxh5 {[%clk 0:00:16]}  Bg7 {[%clk 0:00:20]} 44. Rc5 {[%clk 0:00:14]}  Re7 {[%clk 0:00:19]} 45. h4 {[%clk 0:00:12]}  Re2+ {[%clk 0:00:20]} 46. Kb3 {[%clk 0:00:11]}  Rg2 {[%clk 0:00:21]} 47. Rg5 {[%clk 0:00:11]}  Kh7 {[%clk 0:00:21]} 48. h5 {[%clk 0:00:10]}  Bf6 {[%clk 0:00:16]} 49. Rf5 {[%clk 0:00:09]}  Kg7 {[%clk 0:00:14]} 50. Rc5 {[%clk 0:00:06]}  Rxg3 {[%clk 0:00:14]} 51. Rc4 {[%clk 0:00:07]}  Rh3 {[%clk 0:00:14]} 52. Rc5 {[%clk 0:00:07]}  Kh6 {[%clk 0:00:12]} 53. Kc2 {[%clk 0:00:07]}  Rxh5 {[%clk 0:00:11]} 54. Rc6 {[%clk 0:00:07]}  Kg7 {[%clk 0:00:11]} 55. c4 {[%clk 0:00:07]}  Rh4 {[%clk 0:00:11]} 56. Kd3 {[%clk 0:00:07]}  Rxf4 {[%clk 0:00:12]} 57. c5 {[%clk 0:00:08]}  Rd4+ {[%clk 0:00:12]} 58. Ke3 {[%clk 0:00:08]}  Rc4 {[%clk 0:00:12]} 59. Kd3 {[%clk 0:00:08]}  Rc3+ {[%clk 0:00:12]} 60. Ke4 {[%clk 0:00:08]}  Rc1 {[%clk 0:00:12]} 61. Rc7 {[%clk 0:00:08]}  Bb2 {[%clk 0:00:12]} 62. c6 {[%clk 0:00:08]}  Kg6 {[%clk 0:00:11]} 63. Rc8 {[%clk 0:00:08]}  f5+ {[%clk 0:00:10]} 64. Kd5 {[%clk 0:00:08]}  Rd1+ {[%clk 0:00:10]} 65. Ke6 {[%clk 0:00:08]}  Re1+ {[%clk 0:00:10]} 66. Kd5 {[%clk 0:00:08]}  Bg7 {[%clk 0:00:08]} 67. Rg8 {[%clk 0:00:06]}  Rc1 {[%clk 0:00:07]} 68. Kd6 {[%clk 0:00:06]}  Kf7 {[%clk 0:00:07]} 69. Ra8 {[%clk 0:00:06]}  f4 {[%clk 0:00:07]} 70. c7 {[%clk 0:00:06]}  f3 {[%clk 0:00:06]} 71. c8=Q {[%clk 0:00:05]}  Rxc8 {[%clk 0:00:06]} 72. Rxc8 {[%clk 0:00:06]}  f2 {[%clk 0:00:06]} 73. Rc1 {[%clk 0:00:05]}  Bd4 {[%clk 0:00:06]} 74. Rf1 {[%clk 0:00:05]}  Kf6 {[%clk 0:00:06]} 75. Kd5 {[%clk 0:00:06]}  Ba7 {[%clk 0:00:06]} 76. Ke4 {[%clk 0:00:06]}  Kg5 {[%clk 0:00:06]} 77. Kf3 {[%clk 0:00:06]}  Kf5 {[%clk 0:00:06]} 78. Kg2 {[%clk 0:00:06]}  Kf4 {[%clk 0:00:06]} 79. Ra1 {[%clk 0:00:06]}  Be3 {[%clk 0:00:07]} 80. Ra4+ {[%clk 0:00:06]}  Ke5 {[%clk 0:00:06]} 81. Kf1 {[%clk 0:00:06]}  Bd4 {[%clk 0:00:06]} 82. Ke2 {[%clk 0:00:06]}  Bc5 {[%clk 0:00:06]} 83. Ra5 {[%clk 0:00:06]}  Kd5 {[%clk 0:00:07]} 84. Ra8 {[%clk 0:00:06]}  Kc4 {[%clk 0:00:07]} 85. Rc8 {[%clk 0:00:06]}  Kd5 {[%clk 0:00:07]} 86. Rd8+ {[%clk 0:00:07]}  Ke5 {[%clk 0:00:07]} 87. Re8+ {[%clk 0:00:07]}  Kd5 {[%clk 0:00:07]} 88. Ra8 {[%clk 0:00:07]}  Ke5 {[%clk 0:00:07]} 89. Ra5 {[%clk 0:00:06]}  Kd5 {[%clk 0:00:07]} 90. Kf1 {[%clk 0:00:06]}  Kc4 {[%clk 0:00:08]} 91. Ra6 {[%clk 0:00:05]}  Kd5 {[%clk 0:00:08]} 92. Rf6 {[%clk 0:00:05]}  Kc4 {[%clk 0:00:08]} 93. Rxf2 {[%clk 0:00:05]}  Bxf2 {[%clk 0:00:08]} 1/2-1/2


[Site "https://www.chess.com"]

[Event "Titled Tuesday Blitz March 21 Early 2023"]
[White "Rangel, Daniel"]
[Black "Perez Ponsa, Federico"]
[WhiteFideId "2124475"]
[BlackFideId "117927"]
[WhiteElo "2256"]
[BlackElo "2592"]
[Result "1-0"]
[Round "01"]
[TimeControl "180+2"]
[Date "2023.03.21"]
[WhiteClock "0:00:11"]
[BlackClock "0:00:02"]

1. c4 {[%clk 0:03:00]}  Nf6 {[%clk 0:02:54]} 2. g3 {[%clk 0:03:00]}  g6 {[%clk 0:02:55]} 3. Bg2 {[%clk 0:03:00]}  Bg7 {[%clk 0:02:55]} 4. Nc3 {[%clk 0:03:01]}  O-O {[%clk 0:02:55]} 5. e3 {[%clk 0:03:00]}  d6 {[%clk 0:02:56]} 6. Nge2 {[%clk 0:03:00]}  e5 {[%clk 0:02:56]} 7. O-O {[%clk 0:03:01]}  c6 {[%clk 0:02:56]} 8. d3 {[%clk 0:03:01]}  Re8 {[%clk 0:02:56]} 9. Rb1 {[%clk 0:03:01]}  a5 {[%clk 0:02:53]} 10. a3 {[%clk 0:03:01]}  d5 {[%clk 0:02:52]} 11. cxd5 {[%clk 0:02:52]}  cxd5 {[%clk 0:02:53]} 12. d4 {[%clk 0:02:28]}  e4 {[%clk 0:02:46]} 13. Nb5 {[%clk 0:02:28]}  Nc6 {[%clk 0:02:46]} 14. Nec3 {[%clk 0:02:26]}  Bg4 {[%clk 0:02:41]} 15. Qb3 {[%clk 0:02:24]}  Qd7 {[%clk 0:02:29]} 16. Na4 {[%clk 0:02:22]}  Rad8 {[%clk 0:02:23]} 17. Nc5 {[%clk 0:02:12]}  Qc8 {[%clk 0:02:22]} 18. Nc3 {[%clk 0:02:09]}  Re7 {[%clk 0:02:20]} 19. Bd2 {[%clk 0:02:03]}  h5 {[%clk 0:02:08]} 20. Rbc1 {[%clk 0:01:55]}  h4 {[%clk 0:02:00]} 21. N3a4 {[%clk 0:01:54]}  Bh3 {[%clk 0:01:57]} 22. Rfe1 {[%clk 0:01:38]}  Bxg2 {[%clk 0:01:53]} 23. Kxg2 {[%clk 0:01:39]}  h3+ {[%clk 0:01:51]} 24. Kg1 {[%clk 0:01:39]}  Qf5 {[%clk 0:01:50]} 25. Qd1 {[%clk 0:01:30]}  Ng4 {[%clk 0:01:38]} 26. Qe2 {[%clk 0:01:29]}  Bxd4 {[%clk 0:01:38]} 27. Nxb7 {[%clk 0:01:22]}  Nce5 {[%clk 0:01:33]} 28. Nxd8 {[%clk 0:01:15]}  Nf3+ {[%clk 0:01:30]} 29. Kh1 {[%clk 0:01:15]}  Bg7 {[%clk 0:01:05]} 30. Bc3 {[%clk 0:01:02]}  Nfxh2 {[%clk 0:01:00]} 31. Bxg7 {[%clk 0:00:51]}  Kxg7 {[%clk 0:00:59]} 32. Nc6 {[%clk 0:00:49]}  Re8 {[%clk 0:00:52]} 33. Nd4 {[%clk 0:00:47]}  Qf6 {[%clk 0:00:52]} 34. Rc6 {[%clk 0:00:46]}  Qe5 {[%clk 0:00:52]} 35. Rec1 {[%clk 0:00:34]}  Re7 {[%clk 0:00:51]} 36. Nc3 {[%clk 0:00:32]}  Rb7 {[%clk 0:00:47]} 37. Ncb5 {[%clk 0:00:32]}  Kh6 {[%clk 0:00:31]} 38. a4 {[%clk 0:00:31]}  f6 {[%clk 0:00:26]} 39. Rc7 {[%clk 0:00:28]}  Rxc7 {[%clk 0:00:21]} 40. Rxc7 {[%clk 0:00:29]}  Qh5 {[%clk 0:00:17]} 41. Rc8 {[%clk 0:00:24]}  Kg7 {[%clk 0:00:11]} 42. Qc2 {[%clk 0:00:22]}  Ne5 {[%clk 0:00:07]} 43. Qc7+ {[%clk 0:00:18]}  Nf7 {[%clk 0:00:06]} 44. Nd6 {[%clk 0:00:14]}  Qe2 {[%clk 0:00:01]} 45. Qxf7+ {[%clk 0:00:12]}  Kh6 {[%clk 0:00:01]} 46. Rh8+ {[%clk 0:00:10]}  Kg5 {[%clk 0:00:02]} 47. Nxe2 {[%clk 0:00:11]} 1-0


[Site "https://www.chess.com"]